[Event "December 5 Early 2023"]
[Site "https://www.chess.com"]
[Date "2023.12.05"]
[Round "4"]
[White "Shuvalova, Polina"]
[Black "Navarrete Mendez, Gonzalo Alberto"]
[Result "0-1"]
[Board "49"]
[TimeControl "180+1"]
[WhiteFideId "24171760"]
[BlackFideId "5106850"]
[WhiteElo "2861"]
[BlackElo "2588"]
[WhiteTeam "RUS"]
[BlackTeam "MEX"]
[WhiteClock "0:00:34"]
[BlackClock "0:00:19"]

1. e4 {[%clk 0:03:00]}  e5 {[%clk 0:03:00]} 2. Nf3 {[%clk 0:02:57]}  Nc6 {[%clk 0:03:00]} 3. Nc3 {[%clk 0:02:51]}  Nf6 {[%clk 0:03:00]} 4. Bb5 {[%clk 0:02:50]}  Nd4 {[%clk 0:02:58]} 5. O-O {[%clk 0:02:49]}  c6 {[%clk 0:02:58]} 6. Bd3 {[%clk 0:02:49]}  Nxf3+ {[%clk 0:02:50]} 7. Qxf3 {[%clk 0:02:47]}  d6 {[%clk 0:02:51]} 8. Be2 {[%clk 0:02:46]}  g6 {[%clk 0:02:45]} 9. d3 {[%clk 0:02:45]}  Bg7 {[%clk 0:02:44]} 10. Qg3 {[%clk 0:02:43]}  O-O {[%clk 0:02:41]} 11. f4 {[%clk 0:02:43]}  exf4 {[%clk 0:02:10]} 12. Bxf4 {[%clk 0:02:43]}  Qb6+ {[%clk 0:01:54]} 13. Kh1 {[%clk 0:02:41]}  Qxb2 {[%clk 0:01:54]} 14. d4 {[%clk 0:02:17]}  d5 {[%clk 0:01:34]} 15. e5 {[%clk 0:02:12]}  Ne4 {[%clk 0:01:30]} 16. Nxe4 {[%clk 0:02:12]}  dxe4 {[%clk 0:01:31]} 17. Qe3 {[%clk 0:02:06]}  Qxc2 {[%clk 0:01:25]} 18. a4 {[%clk 0:02:04]}  Be6 {[%clk 0:01:11]} 19. Rfc1 {[%clk 0:01:49]}  Qb3 {[%clk 0:01:11]} 20. Qxe4 {[%clk 0:01:43]}  Bd5 {[%clk 0:01:01]} 21. Qd3 {[%clk 0:01:39]}  Qxd3 {[%clk 0:01:00]} 22. Bxd3 {[%clk 0:01:40]}  Rfd8 {[%clk 0:00:59]} 23. Rab1 {[%clk 0:01:39]}  b6 {[%clk 0:00:59]} 24. Kg1 {[%clk 0:01:37]}  Ba2 {[%clk 0:00:45]} 25. Rb2 {[%clk 0:01:22]}  Rxd4 {[%clk 0:00:45]} 26. Rxa2 {[%clk 0:01:22]}  Rxf4 {[%clk 0:00:35]} 27. Rxc6 {[%clk 0:01:17]}  Bxe5 {[%clk 0:00:33]} 28. g3 {[%clk 0:01:17]}  Rd4 {[%clk 0:00:31]} 29. Bc4 {[%clk 0:01:18]}  Rd6 {[%clk 0:00:28]} 30. Rxd6 {[%clk 0:01:15]}  Bxd6 {[%clk 0:00:29]} 31. Kg2 {[%clk 0:01:14]}  Kg7 {[%clk 0:00:28]} 32. Rd2 {[%clk 0:01:14]}  Rd8 {[%clk 0:00:28]} 33. Rf2 {[%clk 0:01:09]}  f5 {[%clk 0:00:28]} 34. Re2 {[%clk 0:01:08]}  Bc5 {[%clk 0:00:27]} 35. Bb5 {[%clk 0:01:06]}  Kf6 {[%clk 0:00:22]} 36. Bc4 {[%clk 0:01:05]}  Rd6 {[%clk 0:00:22]} 37. Kf3 {[%clk 0:01:00]}  h6 {[%clk 0:00:22]} 38. h4 {[%clk 0:01:00]}  g5 {[%clk 0:00:22]} 39. hxg5+ {[%clk 0:01:00]}  hxg5 {[%clk 0:00:23]} 40. g4 {[%clk 0:00:49]}  fxg4+ {[%clk 0:00:21]} 41. Kg3 {[%clk 0:00:50]}  Rd4 {[%clk 0:00:20]} 42. Re6+ {[%clk 0:00:48]}  Kf5 {[%clk 0:00:20]} 43. Ba2 {[%clk 0:00:35]}  Rd3+ {[%clk 0:00:19]} 44. Kg2 {[%clk 0:00:35]}  Rd2+ {[%clk 0:00:19]} 45. Kf1 {[%clk 0:00:34]}  Rxa2 {[%clk 0:00:19]} 0-1

[Event "December 5 Early 2023"]
[Site "https://www.chess.com"]
[Date "2023.12.05"]
[Round "4"]
[White "Malyi, Viacheslav"]
[Black "IM_ArthurDW08"]
[Result "1/2-1/2"]
[Board "55"]
[TimeControl "180+1"]
[WhiteFideId "14123983"]
[WhiteElo "2573"]
[BlackElo "2807"]
[WhiteTeam "UKR"]
[WhiteClock "0:00:07"]
[BlackClock "0:00:03"]

1. e4 {[%clk 0:03:00]}  e5 {[%clk 0:02:59]} 2. Nf3 {[%clk 0:03:00]}  Nc6 {[%clk 0:03:00]} 3. Bb5 {[%clk 0:03:00]}  a6 {[%clk 0:02:47]} 4. Bxc6 {[%clk 0:02:58]}  dxc6 {[%clk 0:02:47]} 5. O-O {[%clk 0:02:59]}  Qf6 {[%clk 0:02:43]} 6. d4 {[%clk 0:02:58]}  exd4 {[%clk 0:02:43]} 7. Qxd4 {[%clk 0:02:58]}  Qxd4 {[%clk 0:02:41]} 8. Nxd4 {[%clk 0:02:59]}  Bd7 {[%clk 0:02:42]} 9. Nc3 {[%clk 0:02:58]}  O-O-O {[%clk 0:02:42]} 10. Be3 {[%clk 0:02:59]}  c5 {[%clk 0:02:37]} 11. Nde2 {[%clk 0:02:53]}  b6 {[%clk 0:02:34]} 12. Rfd1 {[%clk 0:02:53]}  Ne7 {[%clk 0:02:32]} 13. f3 {[%clk 0:02:54]}  Ng6 {[%clk 0:02:31]} 14. Kf2 {[%clk 0:02:54]}  Bd6 {[%clk 0:02:13]} 15. g3 {[%clk 0:02:52]}  h5 {[%clk 0:02:12]} 16. Nf4 {[%clk 0:02:39]}  h4 {[%clk 0:01:34]} 17. Rh1 {[%clk 0:02:33]}  Ne5 {[%clk 0:01:29]} 18. b3 {[%clk 0:02:26]}  g5 {[%clk 0:00:42]} 19. Nfd5 {[%clk 0:02:22]}  g4 {[%clk 0:00:42]} 20. f4 {[%clk 0:02:16]}  Nf3 {[%clk 0:00:43]} 21. e5 {[%clk 0:01:54]}  Bf8 {[%clk 0:00:42]} 22. Nf6 {[%clk 0:01:44]}  Bf5 {[%clk 0:00:32]} 23. Nce4 {[%clk 0:01:36]}  Bg7 {[%clk 0:00:28]} 24. Ng5 {[%clk 0:00:57]}  Nxg5 {[%clk 0:00:17]} 25. fxg5 {[%clk 0:00:58]}  Bxc2 {[%clk 0:00:14]} 26. gxh4 {[%clk 0:00:46]}  Rxh4 {[%clk 0:00:13]} 27. Bf4 {[%clk 0:00:47]}  Bxf6 {[%clk 0:00:07]} 28. exf6 {[%clk 0:00:41]}  Rh3 {[%clk 0:00:06]} 29. Bg3 {[%clk 0:00:36]}  Rd3 {[%clk 0:00:06]} 30. Rhe1 {[%clk 0:00:30]}  Rd2+ {[%clk 0:00:03]} 31. Re2 {[%clk 0:00:28]}  Rxe2+ {[%clk 0:00:02]} 32. Kxe2 {[%clk 0:00:29]}  Bg6 {[%clk 0:00:03]} 33. Re1 {[%clk 0:00:25]}  Rh8 {[%clk 0:00:04]} 34. Kf2 {[%clk 0:00:23]}  Rd8 {[%clk 0:00:04]} 35. Re7 {[%clk 0:00:23]}  Rd7 {[%clk 0:00:04]} 36. Ke3 {[%clk 0:00:19]}  Rxe7+ {[%clk 0:00:03]} 37. fxe7 {[%clk 0:00:20]}  Kd7 {[%clk 0:00:04]} 38. Bxc7 {[%clk 0:00:18]}  Kxe7 {[%clk 0:00:03]} 39. Bxb6 {[%clk 0:00:18]}  Kd6 {[%clk 0:00:03]} 40. a3 {[%clk 0:00:10]}  Kd5 {[%clk 0:00:02]} 41. b4 {[%clk 0:00:08]}  cxb4 {[%clk 0:00:02]} 42. axb4 {[%clk 0:00:08]}  Ke5 {[%clk 0:00:03]} 43. Bd8 {[%clk 0:00:07]}  Kf5 {[%clk 0:00:04]} 44. Bf6 {[%clk 0:00:06]}  Bh5 {[%clk 0:00:04]} 45. Bd8 {[%clk 0:00:06]}  Bg6 {[%clk 0:00:04]} 46. Bf6 {[%clk 0:00:07]}  Bh7 {[%clk 0:00:04]} 47. Bd8 {[%clk 0:00:07]}  Bg6 {[%clk 0:00:03]} 1/2-1/2

[Event "December 5 Early 2023"]
[Site "https://www.chess.com"]
[Date "2023.12.05"]
[Round "4"]
[White "Dragun, Kamil"]
[Black "Viana Da Costa, Fernando"]
[Result "1-0"]
[Board "56"]
[TimeControl "180+1"]
[WhiteFideId "1134167"]
[BlackFideId "2111900"]
[WhiteElo "2805"]
[BlackElo "2570"]
[WhiteTeam "POL"]
[BlackTeam "BRA"]
[WhiteClock "0:01:43"]
[BlackClock "0:01:35"]

1. d4 {[%clk 0:03:00]}  Nf6 {[%clk 0:02:49]} 2. c4 {[%clk 0:03:01]}  e6 {[%clk 0:02:48]} 3. Nf3 {[%clk 0:03:01]}  d5 {[%clk 0:02:49]} 4. Nc3 {[%clk 0:03:01]}  Bb4 {[%clk 0:02:48]} 5. cxd5 {[%clk 0:02:59]}  exd5 {[%clk 0:02:48]} 6. Bg5 {[%clk 0:03:00]}  c6 {[%clk 0:02:49]} 7. e3 {[%clk 0:02:59]}  h6 {[%clk 0:02:49]} 8. Bh4 {[%clk 0:02:58]}  O-O {[%clk 0:02:49]} 9. Bd3 {[%clk 0:02:57]}  Re8 {[%clk 0:02:49]} 10. O-O {[%clk 0:02:55]}  Be6 {[%clk 0:02:42]} 11. Ne5 {[%clk 0:02:54]}  Be7 {[%clk 0:02:39]} 12. f4 {[%clk 0:02:52]}  c5 {[%clk 0:02:23]} 13. Kh1 {[%clk 0:02:44]}  Nc6 {[%clk 0:02:22]} 14. Bc2 {[%clk 0:02:13]}  Rc8 {[%clk 0:02:11]} 15. Rc1 {[%clk 0:01:57]}  c4 {[%clk 0:02:07]} 16. Bb1 {[%clk 0:01:51]}  Nxe5 {[%clk 0:01:46]} 17. dxe5 {[%clk 0:01:48]}  Ne4 {[%clk 0:01:44]} 18. Bxe7 {[%clk 0:01:44]}  Qxe7 {[%clk 0:01:39]} 19. Bxe4 {[%clk 0:01:43]}  dxe4 {[%clk 0:01:39]} 20. Nxe4 {[%clk 0:01:44]}  Red8 {[%clk 0:01:35]} 21. Nd6 {[%clk 0:01:43]} 1-0

[Event "December 5 Early 2023"]
[Site "https://www.chess.com"]
[Date "2023.12.05"]
[Round "4"]
[White "Skvortsov, Andrei"]
[Black "Aydin, Gulenay"]
[Result "1-0"]
[Board "58"]
[TimeControl "180+1"]
[WhiteFideId "24108600"]
[BlackFideId "34557431"]
[WhiteElo "2790"]
[BlackElo "2566"]
[WhiteTeam "MNE"]
[BlackTeam "TUR"]
[WhiteClock "0:01:22"]
[BlackClock "0:00:01"]

1. e4 {[%clk 0:03:00]}  c5 {[%clk 0:02:59]} 2. d4 {[%clk 0:03:00]}  cxd4 {[%clk 0:02:57]} 3. Qxd4 {[%clk 0:03:01]}  Nc6 {[%clk 0:02:55]} 4. Qd3 {[%clk 0:03:01]}  d6 {[%clk 0:02:55]} 5. Nc3 {[%clk 0:03:01]}  g6 {[%clk 0:02:52]} 6. Nf3 {[%clk 0:03:02]}  Bg7 {[%clk 0:02:52]} 7. Be2 {[%clk 0:03:02]}  Nf6 {[%clk 0:02:52]} 8. O-O {[%clk 0:03:03]}  O-O {[%clk 0:02:52]} 9. Nd5 {[%clk 0:03:03]}  Bd7 {[%clk 0:02:38]} 10. c3 {[%clk 0:03:02]}  Rc8 {[%clk 0:02:38]} 11. Bg5 {[%clk 0:02:57]}  Nxd5 {[%clk 0:02:01]} 12. exd5 {[%clk 0:02:58]}  Ne5 {[%clk 0:01:55]} 13. Nxe5 {[%clk 0:02:58]}  Bxe5 {[%clk 0:01:51]} 14. Qe3 {[%clk 0:02:56]}  Bf6 {[%clk 0:01:50]} 15. Bh6 {[%clk 0:02:54]}  Re8 {[%clk 0:01:49]} 16. Qxa7 {[%clk 0:02:54]}  Ra8 {[%clk 0:01:41]} 17. Qe3 {[%clk 0:02:53]}  e5 {[%clk 0:01:04]} 18. dxe6 {[%clk 0:02:53]}  Rxe6 {[%clk 0:01:04]} 19. Qd2 {[%clk 0:02:53]}  Bc6 {[%clk 0:00:56]} 20. Be3 {[%clk 0:02:53]}  Qa5 {[%clk 0:00:49]} 21. Bg4 {[%clk 0:02:50]}  Ree8 {[%clk 0:00:40]} 22. Qxd6 {[%clk 0:02:48]}  Be5 {[%clk 0:00:31]} 23. Qc5 {[%clk 0:02:48]}  Qc7 {[%clk 0:00:32]} 24. h3 {[%clk 0:02:42]}  Rad8 {[%clk 0:00:13]} 25. Rad1 {[%clk 0:02:32]}  Bd6 {[%clk 0:00:13]} 26. Qb6 {[%clk 0:02:29]}  Qe7 {[%clk 0:00:13]} 27. Rd4 {[%clk 0:02:16]}  h5 {[%clk 0:00:09]} 28. Bd1 {[%clk 0:01:54]}  Bc7 {[%clk 0:00:09]} 29. Qb4 {[%clk 0:01:43]}  Bd6 {[%clk 0:00:08]} 30. Qa5 {[%clk 0:01:38]}  Bc7 {[%clk 0:00:07]} 31. Qg5 {[%clk 0:01:36]}  Qxg5 {[%clk 0:00:04]} 32. Bxg5 {[%clk 0:01:37]}  Rxd4 {[%clk 0:00:05]} 33. cxd4 {[%clk 0:01:37]}  Bb6 {[%clk 0:00:06]} 34. Be3 {[%clk 0:01:35]}  Rd8 {[%clk 0:00:06]} 35. Be2 {[%clk 0:01:32]}  Bxd4 {[%clk 0:00:07]} 36. Rd1 {[%clk 0:01:33]}  Bf6 {[%clk 0:00:07]} 37. Rxd8+ {[%clk 0:01:33]}  Bxd8 {[%clk 0:00:08]} 38. b4 {[%clk 0:01:33]}  Be7 {[%clk 0:00:06]} 39. b5 {[%clk 0:01:32]}  Bd5 {[%clk 0:00:07]} 40. a4 {[%clk 0:01:33]}  Bb4 {[%clk 0:00:06]} 41. Bb6 {[%clk 0:01:33]}  Kf8 {[%clk 0:00:05]} 42. a5 {[%clk 0:01:33]}  Ke7 {[%clk 0:00:06]} 43. a6 {[%clk 0:01:31]}  bxa6 {[%clk 0:00:07]} 44. bxa6 {[%clk 0:01:32]}  Kd7 {[%clk 0:00:07]} 45. Bb5+ {[%clk 0:01:31]}  Kc8 {[%clk 0:00:07]} 46. h4 {[%clk 0:01:26]}  Be7 {[%clk 0:00:07]} 47. g3 {[%clk 0:01:26]}  Bd6 {[%clk 0:00:08]} 48. Be3 {[%clk 0:01:25]}  Kb8 {[%clk 0:00:08]} 49. Kf1 {[%clk 0:01:25]}  Ka8 {[%clk 0:00:06]} 50. Ke2 {[%clk 0:01:25]}  Bb8 {[%clk 0:00:06]} 51. Kd3 {[%clk 0:01:25]}  Bg2 {[%clk 0:00:05]} 52. Bc4 {[%clk 0:01:25]}  Ba7 {[%clk 0:00:03]} 53. Bxa7 {[%clk 0:01:23]}  Kxa7 {[%clk 0:00:04]} 54. Bxf7 {[%clk 0:01:23]}  Bf1+ {[%clk 0:00:01]} 55. Ke3 {[%clk 0:01:22]} 1-0

[Event "December 5 Early 2023"]
[Site "https://www.chess.com"]
[Date "2023.12.05"]
[Round "4"]
[White "Jeet, Jain"]
[Black "Dragnev, Valentin"]
[Result "0-1"]
[Board "60"]
[TimeControl "180+1"]
[WhiteFideId "5073022"]
[BlackFideId "1634852"]
[WhiteElo "2564"]
[BlackElo "2788"]
[WhiteTeam "IND"]
[BlackTeam "AUT"]
[WhiteClock "0:00:06"]
[BlackClock "0:00:14"]

1. Nf3 {[%clk 0:03:00]}  Nf6 {[%clk 0:02:57]} 2. g3 {[%clk 0:03:01]}  b5 {[%clk 0:02:56]} 3. Bg2 {[%clk 0:03:01]}  Bb7 {[%clk 0:02:56]} 4. O-O {[%clk 0:03:02]}  e6 {[%clk 0:02:56]} 5. a4 {[%clk 0:03:01]}  b4 {[%clk 0:02:55]} 6. c3 {[%clk 0:03:02]}  c5 {[%clk 0:02:49]} 7. a5 {[%clk 0:03:00]}  Be7 {[%clk 0:02:46]} 8. d4 {[%clk 0:02:59]}  bxc3 {[%clk 0:02:42]} 9. Nxc3 {[%clk 0:02:57]}  cxd4 {[%clk 0:02:42]} 10. Qxd4 {[%clk 0:02:49]}  Nc6 {[%clk 0:02:42]} 11. Qa4 {[%clk 0:02:49]}  Ba6 {[%clk 0:02:38]} 12. Bf4 {[%clk 0:02:41]}  O-O {[%clk 0:02:37]} 13. Rfd1 {[%clk 0:02:40]}  Rc8 {[%clk 0:02:26]} 14. Bd6 {[%clk 0:02:33]}  Bxd6 {[%clk 0:02:16]} 15. Rxd6 {[%clk 0:02:34]}  Qc7 {[%clk 0:02:16]} 16. Rad1 {[%clk 0:02:32]}  Rb8 {[%clk 0:02:17]} 17. Ng5 {[%clk 0:01:55]}  Rxb2 {[%clk 0:02:02]} 18. Bxc6 {[%clk 0:01:43]}  dxc6 {[%clk 0:02:01]} 19. Qxc6 {[%clk 0:01:42]}  Qxc6 {[%clk 0:01:49]} 20. Rxc6 {[%clk 0:01:43]}  Bxe2 {[%clk 0:01:50]} 21. Nxe2 {[%clk 0:01:43]}  Rxe2 {[%clk 0:01:51]} 22. Rc7 {[%clk 0:01:43]}  a6 {[%clk 0:01:44]} 23. Ra7 {[%clk 0:01:42]}  h6 {[%clk 0:01:31]} 24. Nh3 {[%clk 0:01:30]}  Nd5 {[%clk 0:01:26]} 25. Rxa6 {[%clk 0:01:27]}  Rb8 {[%clk 0:01:27]} 26. Ra1 {[%clk 0:01:22]}  g5 {[%clk 0:01:15]} 27. Rd6 {[%clk 0:01:10]}  Rbb2 {[%clk 0:01:15]} 28. a6 {[%clk 0:01:08]}  Ra2 {[%clk 0:01:15]} 29. Rxa2 {[%clk 0:00:56]}  Rxa2 {[%clk 0:01:16]} 30. f4 {[%clk 0:00:50]}  g4 {[%clk 0:01:06]} 31. f5 {[%clk 0:00:13]}  gxh3 {[%clk 0:01:06]} 32. fxe6 {[%clk 0:00:14]}  fxe6 {[%clk 0:00:50]} 33. Rxe6 {[%clk 0:00:14]}  Kg7 {[%clk 0:00:48]} 34. Rd6 {[%clk 0:00:12]}  Nf6 {[%clk 0:00:37]} 35. Rb6 {[%clk 0:00:10]}  Kg6 {[%clk 0:00:37]} 36. Rc6 {[%clk 0:00:07]}  h5 {[%clk 0:00:36]} 37. Rb6 {[%clk 0:00:08]}  Rg2+ {[%clk 0:00:19]} 38. Kh1 {[%clk 0:00:07]}  Ra2 {[%clk 0:00:15]} 39. Kg1 {[%clk 0:00:06]}  Ra5 {[%clk 0:00:15]} 40. Rc6 {[%clk 0:00:06]}  Kg5 {[%clk 0:00:15]} 41. Kf2 {[%clk 0:00:07]}  Ng4+ {[%clk 0:00:15]} 42. Kg1 {[%clk 0:00:06]}  Ra1+ {[%clk 0:00:14]} 0-1

[Event "December 5 Early 2023"]
[Site "https://www.chess.com"]
[Date "2023.12.05"]
[Round "4"]
[White "Zamorano, Jorge"]
[Black "Manukyan, Sargis A."]
[Result "0-1"]
[Board "62"]
[TimeControl "180+1"]
[WhiteFideId "173770"]
[BlackFideId "13303970"]
[WhiteElo "2783"]
[BlackElo "2562"]
[WhiteTeam "ARG"]
[BlackTeam "ARM"]
[WhiteClock "0:02:20"]
[BlackClock "0:02:43"]

1. d4 {[%clk 0:03:00]}  d5 {[%clk 0:02:59]} 2. c4 {[%clk 0:03:00]}  e6 {[%clk 0:03:00]} 3. Nf3 {[%clk 0:02:59]}  Nf6 {[%clk 0:03:00]} 4. g3 {[%clk 0:03:00]}  Be7 {[%clk 0:03:01]} 5. Bg2 {[%clk 0:03:00]}  O-O {[%clk 0:03:02]} 6. O-O {[%clk 0:03:00]}  dxc4 {[%clk 0:03:02]} 7. Qc2 {[%clk 0:03:01]}  a6 {[%clk 0:03:03]} 8. Qxc4 {[%clk 0:03:01]}  b5 {[%clk 0:03:03]} 9. Qc2 {[%clk 0:03:01]}  Bb7 {[%clk 0:03:04]} 10. Bd2 {[%clk 0:03:01]}  Be4 {[%clk 0:03:02]} 11. Qc1 {[%clk 0:03:01]}  Nc6 {[%clk 0:03:03]} 12. e3 {[%clk 0:02:58]}  b4 {[%clk 0:03:03]} 13. Rd1 {[%clk 0:02:49]}  Qd5 {[%clk 0:02:58]} 14. Ne1 {[%clk 0:02:45]}  Bxg2 {[%clk 0:02:49]} 15. Nxg2 {[%clk 0:02:46]}  e5 {[%clk 0:02:44]} 16. dxe5 {[%clk 0:02:43]}  Nxe5 {[%clk 0:02:44]} 17. Bxb4 {[%clk 0:02:30]}  Nf3+ {[%clk 0:02:44]} 18. Kh1 {[%clk 0:02:20]}  Qh5 {[%clk 0:02:43]} 0-1

[Event "December 5 Early 2023"]
[Site "https://www.chess.com"]
[Date "2023.12.05"]
[Round "4"]
[White "Tologon tegin, Semetei"]
[Black "Halkias, Stelios"]
[Result "1/2-1/2"]
[Board "64"]
[TimeControl "180+1"]
[WhiteFideId "13800574"]
[BlackFideId "4201809"]
[WhiteElo "2559"]
[BlackElo "2778"]
[WhiteTeam "KGZ"]
[BlackTeam "GRE"]
[WhiteClock "0:00:15"]
[BlackClock "0:00:18"]

1. Nf3 {[%clk 0:02:56]}  Nf6 {[%clk 0:02:59]} 2. e3 {[%clk 0:02:57]}  g6 {[%clk 0:02:58]} 3. d4 {[%clk 0:02:57]}  Bg7 {[%clk 0:02:59]} 4. Be2 {[%clk 0:02:56]}  d6 {[%clk 0:03:00]} 5. O-O {[%clk 0:02:57]}  O-O {[%clk 0:03:00]} 6. c4 {[%clk 0:02:57]}  Nbd7 {[%clk 0:03:01]} 7. Nc3 {[%clk 0:02:57]}  e5 {[%clk 0:03:01]} 8. Qc2 {[%clk 0:02:57]}  Re8 {[%clk 0:03:01]} 9. Rd1 {[%clk 0:02:57]}  c6 {[%clk 0:02:56]} 10. b4 {[%clk 0:02:48]}  Qc7 {[%clk 0:02:50]} 11. Bb2 {[%clk 0:02:44]}  exd4 {[%clk 0:02:43]} 12. Rxd4 {[%clk 0:02:32]}  Ne5 {[%clk 0:02:38]} 13. Rad1 {[%clk 0:02:29]}  Bf5 {[%clk 0:02:37]} 14. e4 {[%clk 0:01:45]}  Bg4 {[%clk 0:02:35]} 15. Nxe5 {[%clk 0:01:38]}  dxe5 {[%clk 0:02:34]} 16. Rd6 {[%clk 0:01:38]}  Bxe2 {[%clk 0:02:26]} 17. Qxe2 {[%clk 0:01:39]}  a5 {[%clk 0:02:20]} 18. b5 {[%clk 0:01:36]}  Nh5 {[%clk 0:02:18]} 19. bxc6 {[%clk 0:01:22]}  bxc6 {[%clk 0:02:18]} 20. Qf3 {[%clk 0:01:19]}  Rad8 {[%clk 0:01:52]} 21. Rxd8 {[%clk 0:01:00]}  Rxd8 {[%clk 0:01:50]} 22. Ba3 {[%clk 0:01:00]}  Nf4 {[%clk 0:01:43]} 23. Rxd8+ {[%clk 0:00:41]}  Qxd8 {[%clk 0:01:42]} 24. Qd1 {[%clk 0:00:41]}  Qxd1+ {[%clk 0:01:33]} 25. Nxd1 {[%clk 0:00:42]}  Bf8 {[%clk 0:01:33]} 26. Bb2 {[%clk 0:00:39]}  f6 {[%clk 0:01:29]} 27. g3 {[%clk 0:00:38]}  Nd3 {[%clk 0:01:25]} 28. Bc3 {[%clk 0:00:37]}  Bb4 {[%clk 0:01:25]} 29. Kf1 {[%clk 0:00:37]}  Nc5 {[%clk 0:01:18]} 30. f3 {[%clk 0:00:36]}  Kf7 {[%clk 0:01:11]} 31. Ke2 {[%clk 0:00:35]}  Ke6 {[%clk 0:01:12]} 32. Kd2 {[%clk 0:00:23]}  f5 {[%clk 0:01:07]} 33. exf5+ {[%clk 0:00:23]}  gxf5 {[%clk 0:01:07]} 34. Nb2 {[%clk 0:00:19]}  e4 {[%clk 0:00:45]} 35. Bxb4 {[%clk 0:00:18]}  axb4 {[%clk 0:00:43]} 36. fxe4 {[%clk 0:00:17]}  Nxe4+ {[%clk 0:00:37]} 37. Ke3 {[%clk 0:00:17]}  Nc3 {[%clk 0:00:36]} 38. Nd3 {[%clk 0:00:13]}  Nxa2 {[%clk 0:00:35]} 39. Kd4 {[%clk 0:00:14]}  Kf6 {[%clk 0:00:19]} 40. Kc5 {[%clk 0:00:14]}  b3 {[%clk 0:00:19]} 41. Kxc6 {[%clk 0:00:14]}  f4 {[%clk 0:00:17]} 42. gxf4 {[%clk 0:00:13]}  Kf5 {[%clk 0:00:17]} 43. Kd5 {[%clk 0:00:10]}  Nc1 {[%clk 0:00:17]} 44. Nb2 {[%clk 0:00:07]}  Ne2 {[%clk 0:00:17]} 45. c5 {[%clk 0:00:07]}  Nxf4+ {[%clk 0:00:18]} 46. Kd6 {[%clk 0:00:08]}  Ne6 {[%clk 0:00:18]} 47. c6 {[%clk 0:00:08]}  Kf6 {[%clk 0:00:18]} 48. Nc4 {[%clk 0:00:08]}  Kf5 {[%clk 0:00:16]} 49. h4 {[%clk 0:00:07]}  h5 {[%clk 0:00:16]} 50. Ne3+ {[%clk 0:00:07]}  Ke4 {[%clk 0:00:15]} 51. Nd1 {[%clk 0:00:07]}  Kf5 {[%clk 0:00:14]} 52. Nb2 {[%clk 0:00:07]}  Kf6 {[%clk 0:00:14]} 53. Nc4 {[%clk 0:00:06]}  Kf7 {[%clk 0:00:14]} 54. Kd5 {[%clk 0:00:06]}  Kf6 {[%clk 0:00:14]} 55. Kd6 {[%clk 0:00:06]}  Kf5 {[%clk 0:00:15]} 56. Kd7 {[%clk 0:00:07]}  Kf6 {[%clk 0:00:15]} 57. Nb2 {[%clk 0:00:07]}  Ke5 {[%clk 0:00:14]} 58. c7 {[%clk 0:00:05]}  Nxc7 {[%clk 0:00:14]} 59. Kxc7 {[%clk 0:00:06]}  Kd4 {[%clk 0:00:14]} 60. Kd6 {[%clk 0:00:06]}  Kc3 {[%clk 0:00:15]} 61. Na4+ {[%clk 0:00:06]}  Kb4 {[%clk 0:00:15]} 62. Nb2 {[%clk 0:00:06]}  Kc3 {[%clk 0:00:15]} 63. Na4+ {[%clk 0:00:06]}  Kb4 {[%clk 0:00:16]} 64. Nc5 {[%clk 0:00:06]}  b2 {[%clk 0:00:13]} 65. Nd3+ {[%clk 0:00:06]}  Kc3 {[%clk 0:00:14]} 66. Nxb2 {[%clk 0:00:07]}  Kxb2 {[%clk 0:00:15]} 67. Ke5 {[%clk 0:00:08]}  Kc3 {[%clk 0:00:15]} 68. Kf5 {[%clk 0:00:09]}  Kd4 {[%clk 0:00:16]} 69. Kg5 {[%clk 0:00:09]}  Ke5 {[%clk 0:00:16]} 70. Kxh5 {[%clk 0:00:10]}  Kf6 {[%clk 0:00:15]} 71. Kh6 {[%clk 0:00:11]}  Kf7 {[%clk 0:00:16]} 72. Kh7 {[%clk 0:00:12]}  Kf8 {[%clk 0:00:16]} 73. h5 {[%clk 0:00:11]}  Kf7 {[%clk 0:00:16]} 74. h6 {[%clk 0:00:12]}  Kf8 {[%clk 0:00:17]} 75. Kg6 {[%clk 0:00:13]}  Kg8 {[%clk 0:00:17]} 76. h7+ {[%clk 0:00:14]}  Kh8 {[%clk 0:00:18]} 77. Kh6 {[%clk 0:00:15]} 1/2-1/2

[Event "December 5 Early 2023"]
[Site "https://www.chess.com"]
[Date "2023.12.05"]
[Round "4"]
[White "Albornoz Cabrera, Carlos Daniel"]
[Black "Durucay, Uygar"]
[Result "1-0"]
[Board "65"]
[TimeControl "180+1"]
[WhiteFideId "3518736"]
[BlackFideId "44591560"]
[WhiteElo "2767"]
[BlackElo "2557"]
[WhiteTeam "CUB"]
[BlackTeam "TUR"]
[WhiteClock "0:00:59"]
[BlackClock "0:00:04"]

1. Nf3 {[%clk 0:03:00]}  Nf6 {[%clk 0:02:57]} 2. c4 {[%clk 0:03:01]}  e6 {[%clk 0:02:56]} 3. Nc3 {[%clk 0:03:01]}  d5 {[%clk 0:02:54]} 4. d4 {[%clk 0:03:00]}  Be7 {[%clk 0:02:52]} 5. Bg5 {[%clk 0:02:59]}  O-O {[%clk 0:02:50]} 6. e3 {[%clk 0:03:00]}  c6 {[%clk 0:02:50]} 7. Bd3 {[%clk 0:02:57]}  Nbd7 {[%clk 0:02:49]} 8. O-O {[%clk 0:02:57]}  dxc4 {[%clk 0:02:49]} 9. Bxc4 {[%clk 0:02:57]}  b5 {[%clk 0:02:50]} 10. Bd3 {[%clk 0:02:57]}  Bb7 {[%clk 0:02:50]} 11. Qc2 {[%clk 0:02:48]}  a6 {[%clk 0:02:41]} 12. Bxf6 {[%clk 0:02:47]}  Nxf6 {[%clk 0:02:41]} 13. Ne4 {[%clk 0:02:47]}  h6 {[%clk 0:02:35]} 14. Nxf6+ {[%clk 0:02:38]}  Bxf6 {[%clk 0:02:34]} 15. Rac1 {[%clk 0:02:39]}  Rc8 {[%clk 0:02:34]} 16. Be4 {[%clk 0:02:34]}  Be7 {[%clk 0:02:30]} 17. Ne5 {[%clk 0:02:34]}  Qd6 {[%clk 0:02:23]} 18. Nxc6 {[%clk 0:02:22]}  Bxc6 {[%clk 0:01:35]} 19. Bxc6 {[%clk 0:02:23]}  Rc7 {[%clk 0:01:35]} 20. e4 {[%clk 0:01:57]}  Qxd4 {[%clk 0:01:29]} 21. Rfd1 {[%clk 0:01:54]}  Qb6 {[%clk 0:01:22]} 22. Rd7 {[%clk 0:01:45]}  Rfc8 {[%clk 0:01:15]} 23. Rxc7 {[%clk 0:01:45]}  Rxc7 {[%clk 0:01:13]} 24. g3 {[%clk 0:01:39]}  Bg5 {[%clk 0:01:12]} 25. Qc5 {[%clk 0:01:39]}  Qxc5 {[%clk 0:00:50]} 26. Rxc5 {[%clk 0:01:38]}  Be7 {[%clk 0:00:44]} 27. Rc2 {[%clk 0:01:38]}  Kf8 {[%clk 0:00:41]} 28. f4 {[%clk 0:01:36]}  e5 {[%clk 0:00:16]} 29. fxe5 {[%clk 0:01:34]}  Bg5 {[%clk 0:00:16]} 30. Kf2 {[%clk 0:01:31]}  Ke7 {[%clk 0:00:16]} 31. Kf3 {[%clk 0:01:29]}  h5 {[%clk 0:00:15]} 32. h4 {[%clk 0:01:29]}  Bh6 {[%clk 0:00:14]} 33. b4 {[%clk 0:01:12]}  f6 {[%clk 0:00:14]} 34. exf6+ {[%clk 0:01:10]}  gxf6 {[%clk 0:00:14]} 35. Rc5 {[%clk 0:01:06]}  Kd6 {[%clk 0:00:12]} 36. Rxh5 {[%clk 0:01:03]}  Bd2 {[%clk 0:00:09]} 37. Rd5+ {[%clk 0:01:00]}  Kxc6 {[%clk 0:00:07]} 38. Rxd2 {[%clk 0:01:01]}  Rh7 {[%clk 0:00:06]} 39. Kf4 {[%clk 0:01:00]}  Rh5 {[%clk 0:00:04]} 40. Rd5 {[%clk 0:01:00]}  Rxd5 {[%clk 0:00:03]} 41. exd5+ {[%clk 0:01:00]}  Kxd5 {[%clk 0:00:04]} 42. Kf5 {[%clk 0:00:59]}  Kc4 {[%clk 0:00:05]} 43. h5 {[%clk 0:01:00]}  Kxb4 {[%clk 0:00:06]} 44. h6 {[%clk 0:01:00]}  Ka3 {[%clk 0:00:06]} 45. h7 {[%clk 0:01:01]}  Kxa2 {[%clk 0:00:07]} 46. h8=Q {[%clk 0:01:01]}  a5 {[%clk 0:00:08]} 47. Qxf6 {[%clk 0:01:01]}  b4 {[%clk 0:00:09]} 48. Qd4 {[%clk 0:01:00]}  Ka3 {[%clk 0:00:04]} 49. Qa1+ {[%clk 0:00:59]} 1-0